[Event "Titled Tuesday Blitz February 28 Early 2023"]
[White "Golubev, Mikhail"]
[Black "Martin, Lewis"]
[WhiteFideId "14100983"]
[BlackFideId "410551"]
[WhiteElo "2374"]
[BlackElo "2145"]
[Result "1-0"]
[Round "05"]
[TimeControl "180+2"]
[Date "2023.02.28"]
[WhiteClock "0:00:09"]
[BlackClock "0:00:04"]

1. e4 {[%clk 0:03:00]}  c5 {[%clk 0:02:57]} 2. Nf3 {[%clk 0:03:00]}  d6 {[%clk 0:02:57]} 3. d4 {[%clk 0:03:00]}  cxd4 {[%clk 0:02:58]} 4. Nxd4 {[%clk 0:03:00]}  Nf6 {[%clk 0:02:59]} 5. Nc3 {[%clk 0:03:01]}  a6 {[%clk 0:02:59]} 6. Bc4 {[%clk 0:03:01]}  e5 {[%clk 0:02:57]} 7. Nf5 {[%clk 0:02:59]}  g6 {[%clk 0:02:56]} 8. Ne3 {[%clk 0:02:54]}  Be6 {[%clk 0:02:56]} 9. O-O {[%clk 0:02:45]}  Nbd7 {[%clk 0:02:55]} 10. Ned5 {[%clk 0:02:37]}  Rc8 {[%clk 0:02:49]} 11. Nxf6+ {[%clk 0:02:32]}  Nxf6 {[%clk 0:02:47]} 12. Bxe6 {[%clk 0:02:21]}  fxe6 {[%clk 0:02:47]} 13. f4 {[%clk 0:02:21]}  exf4 {[%clk 0:02:39]} 14. Bxf4 {[%clk 0:02:19]}  Be7 {[%clk 0:02:40]} 15. Bh6 {[%clk 0:02:00]}  Rg8 {[%clk 0:02:04]} 16. Kh1 {[%clk 0:01:54]}  g5 {[%clk 0:01:56]} 17. Qd2 {[%clk 0:01:23]}  Ng4 {[%clk 0:01:40]} 18. Qe2 {[%clk 0:01:03]}  Ne5 {[%clk 0:01:29]} 19. Qh5+ {[%clk 0:00:45]}  Rg6 {[%clk 0:01:28]} 20. Bg7 {[%clk 0:00:44]}  g4 {[%clk 0:00:12]} 21. Qxh7 {[%clk 0:00:39]}  Rg5 {[%clk 0:00:11]} 22. Rad1 {[%clk 0:00:29]}  Qa5 {[%clk 0:00:09]} 23. Bf6 {[%clk 0:00:10]}  Bxf6 {[%clk 0:00:06]} 24. Rxf6 {[%clk 0:00:11]}  Kd8 {[%clk 0:00:04]} 25. Rf8# {[%clk 0:00:09]} 1-0


[Site "https://www.chess.com"]

[Event "Titled Tuesday Blitz February 28 Early 2023"]
[White "Sprenar, Petr"]
[Black "Jiganchine, Roman"]
[WhiteFideId "397164"]
[BlackFideId "2603667"]
[WhiteElo "2182"]
[BlackElo "2279"]
[Result "0-1"]
[Round "05"]
[TimeControl "180+2"]
[Date "2023.02.28"]
[WhiteClock "0:00:04"]
[BlackClock "0:00:54"]

1. d4 {[%clk 0:03:00]}  d5 {[%clk 0:02:59]} 2. c4 {[%clk 0:03:00]}  e6 {[%clk 0:02:59]} 3. Nf3 {[%clk 0:03:00]}  Nf6 {[%clk 0:02:59]} 4. Nc3 {[%clk 0:03:00]}  c5 {[%clk 0:02:58]} 5. cxd5 {[%clk 0:02:57]}  cxd4 {[%clk 0:02:58]} 6. Nxd4 {[%clk 0:02:54]}  Nxd5 {[%clk 0:02:58]} 7. e4 {[%clk 0:02:53]}  Nxc3 {[%clk 0:02:57]} 8. bxc3 {[%clk 0:02:53]}  Be7 {[%clk 0:02:57]} 9. Bd3 {[%clk 0:02:36]}  O-O {[%clk 0:02:56]} 10. O-O {[%clk 0:02:36]}  Nd7 {[%clk 0:02:56]} 11. Be3 {[%clk 0:02:32]}  a6 {[%clk 0:02:55]} 12. Kh1 {[%clk 0:02:31]}  Qc7 {[%clk 0:02:55]} 13. Rc1 {[%clk 0:02:28]}  b5 {[%clk 0:02:53]} 14. f4 {[%clk 0:02:27]}  Bb7 {[%clk 0:02:50]} 15. Nb3 {[%clk 0:02:20]}  Rfd8 {[%clk 0:02:45]} 16. Qe2 {[%clk 0:02:15]}  e5 {[%clk 0:02:34]} 17. f5 {[%clk 0:02:06]}  Nc5 {[%clk 0:02:18]} 18. Nxc5 {[%clk 0:01:36]}  Bxc5 {[%clk 0:02:18]} 19. f6 {[%clk 0:01:34]}  Bf8 {[%clk 0:02:01]} 20. fxg7 {[%clk 0:01:32]}  Bxg7 {[%clk 0:02:00]} 21. c4 {[%clk 0:01:22]}  b4 {[%clk 0:01:59]} 22. c5 {[%clk 0:01:21]}  Qc6 {[%clk 0:01:28]} 23. Bc4 {[%clk 0:01:07]}  Qxe4 {[%clk 0:01:28]} 24. Rxf7 {[%clk 0:00:55]}  Kh8 {[%clk 0:01:27]} 25. Bg5 {[%clk 0:00:18]}  Rd4 {[%clk 0:01:14]} 26. Qxe4 {[%clk 0:00:16]}  Bxe4 {[%clk 0:01:12]} 27. Be3 {[%clk 0:00:11]}  Rxc4 {[%clk 0:01:11]} 28. Rxc4 {[%clk 0:00:11]}  Bd5 {[%clk 0:01:11]} 29. Rxb4 {[%clk 0:00:06]}  Bxf7 {[%clk 0:01:10]} 30. c6 {[%clk 0:00:06]}  Bf8 {[%clk 0:00:57]} 31. Rb7 {[%clk 0:00:04]}  Bd5 {[%clk 0:00:55]} 32. Rb6 {[%clk 0:00:04]}  Rc8 {[%clk 0:00:54]} 33. Rxa6 {[%clk 0:00:04]}  Bxc6 {[%clk 0:00:54]} 0-1


[Site "https://www.chess.com"]

[Event "Titled Tuesday Blitz February 28 Early 2023"]
[White "Herbst, Richard"]
[Black "Buchenau, Frank"]
[WhiteFideId "2041251"]
[BlackFideId "4604350"]
[WhiteElo "2141"]
[BlackElo "2157"]
[Result "0-1"]
[Round "05"]
[TimeControl "180+2"]
[Date "2023.02.28"]
[WhiteClock "0:00:17"]
[BlackClock "0:01:14"]

1. e4 {[%clk 0:03:00]}  e6 {[%clk 0:02:58]} 2. d4 {[%clk 0:02:58]}  d5 {[%clk 0:02:58]} 3. Nd2 {[%clk 0:02:53]}  c5 {[%clk 0:02:56]} 4. exd5 {[%clk 0:02:52]}  Qxd5 {[%clk 0:02:55]} 5. Ngf3 {[%clk 0:02:53]}  cxd4 {[%clk 0:02:54]} 6. Bc4 {[%clk 0:02:53]}  Qd6 {[%clk 0:02:54]} 7. O-O {[%clk 0:02:53]}  Nf6 {[%clk 0:02:53]} 8. Nb3 {[%clk 0:02:54]}  Nc6 {[%clk 0:02:52]} 9. Nbxd4 {[%clk 0:02:54]}  Nxd4 {[%clk 0:02:52]} 10. Nxd4 {[%clk 0:02:55]}  a6 {[%clk 0:02:50]} 11. c3 {[%clk 0:02:54]}  Qc7 {[%clk 0:02:50]} 12. Bb3 {[%clk 0:02:45]}  Bd6 {[%clk 0:02:48]} 13. h3 {[%clk 0:02:39]}  O-O {[%clk 0:02:46]} 14. Qf3 {[%clk 0:02:22]}  e5 {[%clk 0:02:39]} 15. Ne2 {[%clk 0:01:52]}  e4 {[%clk 0:02:36]} 16. Qe3 {[%clk 0:01:48]}  Re8 {[%clk 0:02:20]} 17. Nd4 {[%clk 0:01:38]}  Bd7 {[%clk 0:02:12]} 18. a4 {[%clk 0:00:24]}  Rad8 {[%clk 0:02:07]} 19. a5 {[%clk 0:00:24]}  Bh2+ {[%clk 0:01:51]} 20. Kh1 {[%clk 0:00:24]}  Be5 {[%clk 0:01:50]} 21. Bd2 {[%clk 0:00:23]}  Bc8 {[%clk 0:01:49]} 22. f4 {[%clk 0:00:20]}  exf3 {[%clk 0:01:41]} 23. Qxf3 {[%clk 0:00:17]}  Bxd4 {[%clk 0:01:35]} 24. cxd4 {[%clk 0:00:18]}  Be6 {[%clk 0:01:25]} 25. d5 {[%clk 0:00:16]}  Bxd5 {[%clk 0:01:22]} 26. Bxd5 {[%clk 0:00:16]}  Rxd5 {[%clk 0:01:16]} 27. Bg5 {[%clk 0:00:17]}  Ne4 {[%clk 0:01:14]} 0-1


[Site "https://www.chess.com"]

[Event "Titled Tuesday Blitz February 28 Early 2023"]
[White "Pourkashiyan, Atousa"]
[Black "Hertlein, Irena"]
[WhiteFideId "12502014"]
[BlackFideId "21817618"]
[WhiteElo "2228"]
[BlackElo "1776"]
[Result "0-1"]
[Round "05"]
[TimeControl "180+2"]
[Date "2023.02.28"]
[WhiteClock "0:00:15"]
[BlackClock "0:00:14"]

1. Nf3 {[%clk 0:02:54]}  c5 {[%clk 0:02:59]} 2. g3 {[%clk 0:02:53]}  g6 {[%clk 0:02:58]} 3. Bg2 {[%clk 0:02:54]}  Nc6 {[%clk 0:02:57]} 4. O-O {[%clk 0:02:55]}  Bg7 {[%clk 0:02:57]} 5. c3 {[%clk 0:02:49]}  e5 {[%clk 0:02:57]} 6. e4 {[%clk 0:02:45]}  d6 {[%clk 0:02:54]} 7. d3 {[%clk 0:02:35]}  Nge7 {[%clk 0:02:52]} 8. a4 {[%clk 0:02:24]}  O-O {[%clk 0:02:46]} 9. Na3 {[%clk 0:02:10]}  h6 {[%clk 0:02:30]} 10. Nc4 {[%clk 0:01:46]}  f5 {[%clk 0:02:16]} 11. Re1 {[%clk 0:01:31]}  Be6 {[%clk 0:02:04]} 12. b3 {[%clk 0:01:22]}  g5 {[%clk 0:01:15]} 13. Bb2 {[%clk 0:01:06]}  f4 {[%clk 0:01:10]} 14. d4 {[%clk 0:00:52]}  g4 {[%clk 0:01:07]} 15. Nh4 {[%clk 0:00:41]}  exd4 {[%clk 0:01:07]} 16. cxd4 {[%clk 0:00:39]}  Nxd4 {[%clk 0:01:07]} 17. Rb1 {[%clk 0:00:14]}  f3 {[%clk 0:00:43]} 18. Bf1 {[%clk 0:00:14]}  Nec6 {[%clk 0:00:37]} 19. Ne3 {[%clk 0:00:11]}  Bf6 {[%clk 0:00:29]} 20. Nhf5 {[%clk 0:00:09]}  Bxf5 {[%clk 0:00:29]} 21. Nxf5 {[%clk 0:00:09]}  Nxf5 {[%clk 0:00:29]} 22. Bxf6 {[%clk 0:00:09]}  Qxf6 {[%clk 0:00:28]} 23. Qd5+ {[%clk 0:00:08]}  Kg7 {[%clk 0:00:25]} 24. exf5 {[%clk 0:00:08]}  Nd4 {[%clk 0:00:23]} 25. Bc4 {[%clk 0:00:07]}  Rae8 {[%clk 0:00:19]} 26. Rbd1 {[%clk 0:00:06]}  Re5 {[%clk 0:00:15]} 27. Qxb7+ {[%clk 0:00:06]}  Rf7 {[%clk 0:00:14]} 28. Qxf7+ {[%clk 0:00:04]}  Qxf7 {[%clk 0:00:14]} 29. Bxf7 {[%clk 0:00:05]}  Kxf7 {[%clk 0:00:14]} 30. Rxe5 {[%clk 0:00:05]}  dxe5 {[%clk 0:00:13]} 31. Rd3 {[%clk 0:00:04]}  e4 {[%clk 0:00:11]} 32. Rc3 {[%clk 0:00:04]}  Ne2+ {[%clk 0:00:11]} 33. Kf1 {[%clk 0:00:03]}  Nxc3 {[%clk 0:00:12]} 34. Ke1 {[%clk 0:00:04]}  Nd5 {[%clk 0:00:11]} 35. Kd2 {[%clk 0:00:05]}  Kf6 {[%clk 0:00:11]} 36. h4 {[%clk 0:00:05]}  Kxf5 {[%clk 0:00:11]} 37. Kc2 {[%clk 0:00:05]}  Ke5 {[%clk 0:00:12]} 38. Kd2 {[%clk 0:00:05]}  Kd4 {[%clk 0:00:13]} 39. a5 {[%clk 0:00:06]}  Nb4 {[%clk 0:00:13]} 40. Kd1 {[%clk 0:00:05]}  Kc3 {[%clk 0:00:13]} 41. a6 {[%clk 0:00:05]}  Kxb3 {[%clk 0:00:13]} 42. Kd2 {[%clk 0:00:06]}  Kc4 {[%clk 0:00:13]} 43. Ke3 {[%clk 0:00:07]}  Kb3 {[%clk 0:00:13]} 44. Kf4 {[%clk 0:00:08]}  c4 {[%clk 0:00:13]} 45. Kxe4 {[%clk 0:00:08]}  c3 {[%clk 0:00:14]} 46. Kf4 {[%clk 0:00:09]}  c2 {[%clk 0:00:14]} 47. Kxg4 {[%clk 0:00:10]}  c1=Q {[%clk 0:00:15]} 48. Kxf3 {[%clk 0:00:11]}  Qc6+ {[%clk 0:00:14]} 49. Kf4 {[%clk 0:00:11]}  Qxa6 {[%clk 0:00:14]} 50. g4 {[%clk 0:00:12]}  Qf6+ {[%clk 0:00:14]} 51. Kg3 {[%clk 0:00:12]}  Nd5 {[%clk 0:00:14]} 52. f4 {[%clk 0:00:13]}  Qxf4+ {[%clk 0:00:13]} 53. Kh3 {[%clk 0:00:14]}  Qf3+ {[%clk 0:00:13]} 54. Kh2 {[%clk 0:00:14]}  Qxg4 {[%clk 0:00:14]} 55. h5 {[%clk 0:00:14]}  Ne3 {[%clk 0:00:13]} 56. Kh1 {[%clk 0:00:15]}  Qg2# {[%clk 0:00:14]} 0-1


[Site "https://www.chess.com"]

[Event "Titled Tuesday Blitz February 28 Early 2023"]
[White "Hoffmann, Asa"]
[Black "Levine, David"]
[WhiteFideId "2001470"]
[BlackFideId "2011611"]
[WhiteElo "2117"]
[BlackElo "2115"]
[Result "0-1"]
[Round "05"]
[TimeControl "180+2"]
[Date "2023.02.28"]
[WhiteClock "0:00:17"]
[BlackClock "0:00:10"]

1. d4 {[%clk 0:02:56]}  d5 {[%clk 0:02:59]} 2. Bg5 {[%clk 0:02:55]}  f6 {[%clk 0:02:57]} 3. Bf4 {[%clk 0:02:54]}  Nc6 {[%clk 0:02:52]} 4. Nf3 {[%clk 0:02:51]}  Bg4 {[%clk 0:02:52]} 5. Nbd2 {[%clk 0:02:49]}  e6 {[%clk 0:02:42]} 6. Bg3 {[%clk 0:02:44]}  Bd6 {[%clk 0:02:39]} 7. e3 {[%clk 0:02:42]}  Nh6 {[%clk 0:02:33]} 8. c4 {[%clk 0:02:40]}  Nf7 {[%clk 0:02:20]} 9. Qb3 {[%clk 0:02:39]}  Na5 {[%clk 0:02:16]} 10. Qa4+ {[%clk 0:02:35]}  c6 {[%clk 0:02:16]} 11. c5 {[%clk 0:02:23]}  Bxg3 {[%clk 0:02:14]} 12. hxg3 {[%clk 0:02:23]}  b5 {[%clk 0:02:08]} 13. Qc2 {[%clk 0:02:16]}  Bf5 {[%clk 0:01:48]} 14. Bd3 {[%clk 0:02:13]}  Qd7 {[%clk 0:01:48]} 15. b3 {[%clk 0:02:02]}  Nb7 {[%clk 0:01:45]} 16. O-O-O {[%clk 0:01:44]}  a5 {[%clk 0:01:43]} 17. a3 {[%clk 0:01:43]}  O-O-O {[%clk 0:01:39]} 18. e4 {[%clk 0:01:40]}  dxe4 {[%clk 0:01:32]} 19. Nxe4 {[%clk 0:01:40]}  Kb8 {[%clk 0:01:26]} 20. Nh4 {[%clk 0:01:37]}  Qd5 {[%clk 0:00:54]} 21. Nxf5 {[%clk 0:01:33]}  exf5 {[%clk 0:00:54]} 22. Nc3 {[%clk 0:01:28]}  Qxd4 {[%clk 0:00:42]} 23. Bxf5 {[%clk 0:01:21]}  Qxc5 {[%clk 0:00:40]} 24. Kb2 {[%clk 0:01:20]}  Ne5 {[%clk 0:00:32]} 25. f4 {[%clk 0:01:13]}  Nf7 {[%clk 0:00:28]} 26. Rxh7 {[%clk 0:00:59]}  Rxh7 {[%clk 0:00:28]} 27. Rxd8+ {[%clk 0:00:55]}  Nbxd8 {[%clk 0:00:24]} 28. Bxh7 {[%clk 0:00:55]}  Ne6 {[%clk 0:00:22]} 29. Qd3 {[%clk 0:00:45]}  Qd6 {[%clk 0:00:18]} 30. Qe3 {[%clk 0:00:38]}  Nd4 {[%clk 0:00:18]} 31. Bg8 {[%clk 0:00:34]}  Nd8 {[%clk 0:00:17]} 32. g4 {[%clk 0:00:31]}  Kc7 {[%clk 0:00:17]} 33. f5 {[%clk 0:00:30]}  Kd7 {[%clk 0:00:16]} 34. Ne4 {[%clk 0:00:24]}  Qe5 {[%clk 0:00:13]} 35. Ka2 {[%clk 0:00:20]}  Nb7 {[%clk 0:00:11]} 36. Bf7 {[%clk 0:00:18]}  Kc7 {[%clk 0:00:11]} 37. Be6 {[%clk 0:00:17]}  Nd6 {[%clk 0:00:10]} 0-1


[Site "https://www.chess.com"]

[Event "Titled Tuesday Blitz February 28 Early 2023"]
[White "Flis, Pawel"]
[Black "Vaglio Munoz, Jaime"]
[WhiteFideId "1112864"]
[BlackFideId "6500145"]
[WhiteElo "1822"]
[BlackElo "2199"]
[Result "1-0"]
[Round "05"]
[TimeControl "180+2"]
[Date "2023.02.28"]
[WhiteClock "0:00:09"]
[BlackClock "0:00:10"]

1. e4 {[%clk 0:02:52]}  e6 {[%clk 0:02:56]} 2. d4 {[%clk 0:02:51]}  d5 {[%clk 0:02:56]} 3. Bd3 {[%clk 0:02:52]}  dxe4 {[%clk 0:02:53]} 4. Bxe4 {[%clk 0:02:53]}  Nf6 {[%clk 0:02:52]} 5. Bf3 {[%clk 0:02:53]}  c6 {[%clk 0:02:50]} 6. Ne2 {[%clk 0:02:53]}  Bd6 {[%clk 0:02:50]} 7. O-O {[%clk 0:02:53]}  Qc7 {[%clk 0:02:50]} 8. h3 {[%clk 0:02:52]}  h6 {[%clk 0:02:49]} 9. c4 {[%clk 0:02:51]}  Nbd7 {[%clk 0:02:49]} 10. Nbc3 {[%clk 0:02:52]}  O-O {[%clk 0:02:48]} 11. Be3 {[%clk 0:02:45]}  e5 {[%clk 0:02:47]} 12. d5 {[%clk 0:02:38]}  Re8 {[%clk 0:02:42]} 13. g3 {[%clk 0:02:35]}  e4 {[%clk 0:02:26]} 14. Bg2 {[%clk 0:02:34]}  cxd5 {[%clk 0:02:26]} 15. Nxd5 {[%clk 0:02:27]}  Nxd5 {[%clk 0:02:25]} 16. cxd5 {[%clk 0:02:26]}  Nf6 {[%clk 0:02:25]} 17. Rc1 {[%clk 0:02:19]}  Qa5 {[%clk 0:02:24]} 18. Nc3 {[%clk 0:02:19]}  Bf5 {[%clk 0:02:19]} 19. Qb3 {[%clk 0:01:58]}  Be5 {[%clk 0:01:58]} 20. Rfd1 {[%clk 0:01:49]}  Qa6 {[%clk 0:01:34]} 21. Bf1 {[%clk 0:01:44]}  Qd6 {[%clk 0:01:28]} 22. Nb5 {[%clk 0:01:29]}  Qd7 {[%clk 0:01:27]} 23. Kg2 {[%clk 0:01:22]}  a6 {[%clk 0:01:26]} 24. Nd4 {[%clk 0:01:17]}  Bg6 {[%clk 0:01:23]} 25. a4 {[%clk 0:01:08]}  Qxd5 {[%clk 0:01:19]} 26. Qxd5 {[%clk 0:01:04]}  Nxd5 {[%clk 0:01:20]} 27. Nf5 {[%clk 0:00:56]}  Nxe3+ {[%clk 0:01:06]} 28. Nxe3 {[%clk 0:00:53]}  f5 {[%clk 0:00:48]} 29. Nd5 {[%clk 0:00:39]}  Kh7 {[%clk 0:00:41]} 30. Nc7 {[%clk 0:00:37]}  Bxc7 {[%clk 0:00:32]} 31. Rxc7 {[%clk 0:00:37]}  Rab8 {[%clk 0:00:31]} 32. Rdd7 {[%clk 0:00:37]}  Rg8 {[%clk 0:00:31]} 33. Bc4 {[%clk 0:00:29]}  b5 {[%clk 0:00:30]} 34. Bxg8+ {[%clk 0:00:27]}  Rxg8 {[%clk 0:00:30]} 35. axb5 {[%clk 0:00:27]}  axb5 {[%clk 0:00:30]} 36. Rb7 {[%clk 0:00:27]}  Be8 {[%clk 0:00:30]} 37. Rd8 {[%clk 0:00:24]}  Bc6 {[%clk 0:00:30]} 38. Rxg8 {[%clk 0:00:21]}  Bxb7 {[%clk 0:00:24]} 39. Rb8 {[%clk 0:00:20]}  Bc6 {[%clk 0:00:24]} 40. Kf1 {[%clk 0:00:20]}  g5 {[%clk 0:00:22]} 41. Rb6 {[%clk 0:00:18]}  Bd5 {[%clk 0:00:21]} 42. Ke1 {[%clk 0:00:18]}  Bc4 {[%clk 0:00:21]} 43. Kd2 {[%clk 0:00:18]}  f4 {[%clk 0:00:21]} 44. gxf4 {[%clk 0:00:16]}  gxf4 {[%clk 0:00:22]} 45. b3 {[%clk 0:00:15]}  Bd3 {[%clk 0:00:22]} 46. Kc3 {[%clk 0:00:14]}  Kg7 {[%clk 0:00:22]} 47. Kd4 {[%clk 0:00:14]}  h5 {[%clk 0:00:19]} 48. h4 {[%clk 0:00:13]}  Kf7 {[%clk 0:00:18]} 49. Rh6 {[%clk 0:00:13]}  Kg7 {[%clk 0:00:18]} 50. Rxh5 {[%clk 0:00:13]}  b4 {[%clk 0:00:17]} 51. Rc5 {[%clk 0:00:12]}  Kf6 {[%clk 0:00:15]} 52. Rc6+ {[%clk 0:00:12]}  Kf5 {[%clk 0:00:14]} 53. h5 {[%clk 0:00:12]}  Be2 {[%clk 0:00:12]} 54. h6 {[%clk 0:00:12]}  Bh5 {[%clk 0:00:12]} 55. h7 {[%clk 0:00:11]}  e3 {[%clk 0:00:13]} 56. fxe3 {[%clk 0:00:11]}  f3 {[%clk 0:00:13]} 57. Rc8 {[%clk 0:00:09]}  f2 {[%clk 0:00:12]} 58. Rf8+ {[%clk 0:00:09]}  Kg6 {[%clk 0:00:12]} 59. h8=Q {[%clk 0:00:09]}  Bg4 {[%clk 0:00:11]} 60. Rxf2 {[%clk 0:00:09]}  Be6 {[%clk 0:00:10]} 61. Qf6+ {[%clk 0:00:08]}  Kh5 {[%clk 0:00:10]} 62. Qxe6 {[%clk 0:00:08]}  Kg5 {[%clk 0:00:10]} 63. Qg8+ {[%clk 0:00:08]}  Kh4 {[%clk 0:00:10]} 64. Rh2# {[%clk 0:00:09]} 1-0


[Site "https://www.chess.com"]

[Event "Titled Tuesday Blitz February 28 Early 2023"]
[White "Estrada Nieto, Julian"]
[Black "Necula, Iulian"]
[WhiteFideId "5101018"]
[BlackFideId "1232380"]
[WhiteElo "2176"]
[BlackElo "1790"]
[Result "1-0"]
[Round "05"]
[TimeControl "180+2"]
[Date "2023.02.28"]
[WhiteClock "0:02:04"]
[BlackClock "0:01:37"]

1. e4 {[%clk 0:03:00]}  c5 {[%clk 0:02:59]} 2. Nf3 {[%clk 0:03:01]}  d6 {[%clk 0:02:59]} 3. d4 {[%clk 0:03:01]}  cxd4 {[%clk 0:03:00]} 4. Qxd4 {[%clk 0:03:01]}  Nc6 {[%clk 0:02:57]} 5. Bb5 {[%clk 0:03:01]}  Qa5+ {[%clk 0:02:52]} 6. Nc3 {[%clk 0:03:01]}  Qxb5 {[%clk 0:02:39]} 7. Nxb5 {[%clk 0:03:01]}  Nxd4 {[%clk 0:02:39]} 8. Nfxd4 {[%clk 0:03:01]}  e5 {[%clk 0:02:17]} 9. Ne2 {[%clk 0:02:47]}  Kd8 {[%clk 0:02:11]} 10. Be3 {[%clk 0:02:46]}  b6 {[%clk 0:02:07]} 11. O-O-O {[%clk 0:02:40]}  Kd7 {[%clk 0:01:56]} 12. Ng3 {[%clk 0:02:14]}  g6 {[%clk 0:01:51]} 13. Rd2 {[%clk 0:02:11]}  a6 {[%clk 0:01:46]} 14. Nxd6 {[%clk 0:02:06]}  Bxd6 {[%clk 0:01:44]} 15. Rhd1 {[%clk 0:02:05]}  b5 {[%clk 0:01:37]} 16. Rxd6+ {[%clk 0:02:05]}  Ke7 {[%clk 0:01:37]} 17. Bc5 {[%clk 0:02:04]} 1-0


[Site "https://www.chess.com"]

[Event "Titled Tuesday Blitz February 28 Early 2023"]
[White "Gatterer, Florian"]
[Black "Jesusesmifuerza"]
[WhiteFideId "811688"]
[WhiteElo "2221"]
[BlackElo "2009"]
[Result "1/2-1/2"]
[Round "05"]
[TimeControl "180+2"]
[Date "2023.02.28"]
[WhiteClock "0:01:41"]
[BlackClock "0:01:49"]

1. d4 {[%clk 0:02:59]}  d5 {[%clk 0:02:59]} 2. Bf4 {[%clk 0:02:53]}  e6 {[%clk 0:02:59]} 3. e3 {[%clk 0:02:51]}  Bd6 {[%clk 0:02:59]} 4. Nd2 {[%clk 0:02:51]}  Bxf4 {[%clk 0:02:57]} 5. exf4 {[%clk 0:02:51]}  c5 {[%clk 0:02:58]} 6. dxc5 {[%clk 0:02:43]}  Qc7 {[%clk 0:02:50]} 7. Qg4 {[%clk 0:02:36]}  Ne7 {[%clk 0:02:38]} 8. Nb3 {[%clk 0:02:32]}  O-O {[%clk 0:02:34]} 9. Bd3 {[%clk 0:02:31]}  e5 {[%clk 0:02:24]} 10. Qh4 {[%clk 0:02:22]}  e4 {[%clk 0:02:19]} 11. Be2 {[%clk 0:02:17]}  Ng6 {[%clk 0:02:19]} 12. Qg3 {[%clk 0:02:11]}  Qxf4 {[%clk 0:02:15]} 13. Qxf4 {[%clk 0:02:05]}  Nxf4 {[%clk 0:02:16]} 14. Bf1 {[%clk 0:01:55]}  Be6 {[%clk 0:02:05]} 15. O-O-O {[%clk 0:01:55]}  Nd7 {[%clk 0:02:00]} 16. g3 {[%clk 0:01:48]}  Ng6 {[%clk 0:01:59]} 17. f3 {[%clk 0:01:48]}  Rac8 {[%clk 0:01:51]} 18. fxe4 {[%clk 0:01:41]}  dxe4 {[%clk 0:01:49]} 1/2-1/2


[Site "https://www.chess.com"]

[Event "Titled Tuesday Blitz February 28 Early 2023"]
[White "Castillo Pena, Patricia Evarista"]
[Black "Todorovic, Bojan"]
[WhiteFideId "6412106"]
[BlackFideId "917087"]
[WhiteElo "1919"]
[BlackElo "2266"]
[Result "0-1"]
[Round "05"]
[TimeControl "180+2"]
[Date "2023.02.28"]
[WhiteClock "0:00:41"]
[BlackClock "0:00:12"]

1. d4 {[%clk 0:02:59]}  Nf6 {[%clk 0:02:59]} 2. Nf3 {[%clk 0:02:59]}  g6 {[%clk 0:02:58]} 3. Nc3 {[%clk 0:02:58]}  Bg7 {[%clk 0:02:55]} 4. e4 {[%clk 0:02:58]}  d6 {[%clk 0:02:54]} 5. Be3 {[%clk 0:02:57]}  c6 {[%clk 0:02:51]} 6. a4 {[%clk 0:02:50]}  a5 {[%clk 0:02:48]} 7. Qd2 {[%clk 0:02:49]}  Na6 {[%clk 0:02:36]} 8. Be2 {[%clk 0:02:45]}  Nb4 {[%clk 0:02:35]} 9. O-O {[%clk 0:02:37]}  Ng4 {[%clk 0:02:32]} 10. Bg5 {[%clk 0:02:30]}  h6 {[%clk 0:02:29]} 11. Bh4 {[%clk 0:02:28]}  g5 {[%clk 0:02:24]} 12. Bg3 {[%clk 0:02:28]}  f5 {[%clk 0:02:22]} 13. exf5 {[%clk 0:02:24]}  Bxf5 {[%clk 0:02:21]} 14. h3 {[%clk 0:02:20]}  Nf6 {[%clk 0:02:21]} 15. Rac1 {[%clk 0:02:06]}  O-O {[%clk 0:02:16]} 16. Rfe1 {[%clk 0:01:54]}  Qd7 {[%clk 0:01:55]} 17. Bc4+ {[%clk 0:01:50]}  Nbd5 {[%clk 0:01:52]} 18. Qe2 {[%clk 0:01:40]}  Rae8 {[%clk 0:01:50]} 19. Bd3 {[%clk 0:01:29]}  Nh5 {[%clk 0:01:27]} 20. Bxf5 {[%clk 0:01:18]}  Qxf5 {[%clk 0:01:26]} 21. Qe6+ {[%clk 0:01:14]}  Qxe6 {[%clk 0:01:25]} 22. Rxe6 {[%clk 0:01:15]}  Nxg3 {[%clk 0:01:23]} 23. fxg3 {[%clk 0:01:16]}  Rf5 {[%clk 0:00:53]} 24. Rce1 {[%clk 0:01:12]}  Kf7 {[%clk 0:00:49]} 25. Nxd5 {[%clk 0:01:11]}  cxd5 {[%clk 0:00:43]} 26. c3 {[%clk 0:01:10]}  Rf6 {[%clk 0:00:39]} 27. Rxf6+ {[%clk 0:01:07]}  Bxf6 {[%clk 0:00:39]} 28. Nh2 {[%clk 0:01:05]}  Rb8 {[%clk 0:00:32]} 29. Ng4 {[%clk 0:01:04]}  Bg7 {[%clk 0:00:30]} 30. Ne3 {[%clk 0:01:03]}  e6 {[%clk 0:00:28]} 31. Rf1+ {[%clk 0:00:59]}  Kg6 {[%clk 0:00:25]} 32. g4 {[%clk 0:00:56]}  b5 {[%clk 0:00:24]} 33. axb5 {[%clk 0:00:55]}  Rxb5 {[%clk 0:00:24]} 34. Rf2 {[%clk 0:00:55]}  a4 {[%clk 0:00:25]} 35. Nd1 {[%clk 0:00:54]}  e5 {[%clk 0:00:23]} 36. dxe5 {[%clk 0:00:52]}  dxe5 {[%clk 0:00:23]} 37. Rd2 {[%clk 0:00:51]}  e4 {[%clk 0:00:21]} 38. Kf2 {[%clk 0:00:51]}  Kf7 {[%clk 0:00:18]} 39. Ke3 {[%clk 0:00:51]}  Ke6 {[%clk 0:00:18]} 40. Rf2 {[%clk 0:00:48]}  Rb3 {[%clk 0:00:17]} 41. Rf5 {[%clk 0:00:46]}  a3 {[%clk 0:00:16]} 42. bxa3 {[%clk 0:00:45]}  Bxc3 {[%clk 0:00:16]} 43. Nxc3 {[%clk 0:00:45]}  Rxc3+ {[%clk 0:00:17]} 44. Ke2 {[%clk 0:00:45]}  Rxa3 {[%clk 0:00:16]} 45. Rf8 {[%clk 0:00:43]}  d4 {[%clk 0:00:12]} 46. Re8+ {[%clk 0:00:42]}  Kd5 {[%clk 0:00:12]} 47. Rd8+ {[%clk 0:00:42]}  Ke5 {[%clk 0:00:13]} 48. Re8+ {[%clk 0:00:42]}  Kf4 {[%clk 0:00:13]} 49. g3+ {[%clk 0:00:40]}  Kxg3 {[%clk 0:00:12]} 50. Rxe4 {[%clk 0:00:40]}  Re3+ {[%clk 0:00:11]} 51. Rxe3+ {[%clk 0:00:40]}  dxe3 {[%clk 0:00:11]} 52. Kxe3 {[%clk 0:00:41]}  Kxh3 {[%clk 0:00:12]} 0-1


[Site "https://www.chess.com"]